fUST/lending_fUST_20240426
["ID","MTS","AMOUNT","RATE_DAILY","PERIOD"]
[323592916,1714099868839,-500.0,0.00056164,120]
[323592917,1714099868848,-595.18,0.00056164,120]
[323592918,1714099868857,-500.0,0.00056164,120]
[323592919,1714099868866,-500.0,0.00056164,120]
[323592920,1714099868876,-500.0,0.00056164,120]
[323592921,1714099868885,-500.0,0.00056164,120]
[323592922,1714099868894,-500.0,0.00056164,120]
[323592923,1714099868904,-500.0,0.00056164,120]
[323592924,1714099868913,-1727.11,0.00056164,120]
[323592925,1714099868922,-500.0,0.00056164,120]
[323592926,1714099868931,-500.0,0.00056164,120]
[323592927,1714099868941,-500.0,0.00056164,120]
[323592928,1714099868950,-500.0,0.00056164,120]
[323592929,1714099868960,-1085.28,0.00056164,120]
[323592930,1714099868969,-500.0,0.00056164,120]
[323592931,1714099868978,-769.34,0.00056164,120]
[323592932,1714099868987,-500.0,0.00056164,120]
[323592933,1714099868996,-500.0,0.00056164,7]
[323592934,1714099869005,-500.0,0.00056164,120]
[323592935,1714099869014,-500.0,0.00056164,120]
[323592936,1714099869023,-500.0,0.00056164,120]
[323592937,1714099869033,-503.76764748,0.00056164,120]
[323592938,1714099869041,-500.0,0.00056164,120]
[323592939,1714099869050,-967.69,0.00056164,120]
[323592940,1714099869141,-401.32761074,0.00056164,120]
[323592941,1714099869151,-500.0,0.00056164,120]
[323592942,1714099869160,-500.0,0.00056164,120]
[323592943,1714099869169,-500.0,0.00056164,120]
[323592944,1714099869178,-500.0,0.00056164,120]
[323592945,1714099869187,-500.0,0.00056164,120]
[323592946,1714099869197,-826.47,0.00056164,120]
[323592947,1714099869206,-500.0,0.00056164,120]
[323592948,1714099869215,-500.0,0.00056164,120]
[323592949,1714099869224,-500.0,0.00056164,120]
[323592950,1714099869233,-500.0,0.00056164,120]
[323592951,1714099869243,-500.0,0.00056164,120]
[323592952,1714099869252,-500.0,0.00056164,120]
[323592953,1714099869261,-500.0,0.00056164,120]
[323592954,1714099869271,-500.0,0.00056164,120]
[323592955,1714099869280,-1913.27,0.00056164,120]
[323592956,1714099869289,-500.9573821,0.00056164,120]
[323592957,1714099869298,-586.11271101,0.00056164,120]
[323592958,1714099869308,-1459.11,0.00056164,120]
[323592959,1714099869317,-500.0,0.00056164,120]
[323592960,1714099869326,-1614.85,0.00056164,120]
[323592961,1714099869336,-500.0,0.00056164,120]
[323592962,1714099869345,-1759.91,0.00056164,120]
[323592963,1714099869354,-500.0,0.00056164,120]
[323592964,1714099869363,-500.0,0.00056164,120]
[323592965,1714099869373,-1364.53,0.00056164,120]
[323592966,1714099869382,-500.0,0.00056164,120]
[323592967,1714099869391,-500.0,0.00056164,120]
[323592968,1714099869400,-500.0,0.00056164,120]
[323592969,1714099869410,-500.0,0.00056164,120]
[323592970,1714099869419,-500.0,0.00056164,120]
[323592971,1714099869429,-500.0,0.00056164,3]
[323592972,1714099869440,-500.0,0.00056164,120]
[323592973,1714099869449,-500.0,0.00056164,120]
[323592974,1714099869458,-500.0,0.00056164,120]
[323592975,1714099869467,-882.66,0.00056164,120]
[323592976,1714099869477,-500.0,0.00056164,120]
[323592977,1714099869486,-8110.34,0.00056164,120]
[323592978,1714099869496,-502.28795571,0.00056164,120]
[323592979,1714099869505,-500.0,0.00056164,120]
[323592980,1714099869514,-2998.7,0.00056164,120]
[323592981,1714099869524,-1243.4,0.00056164,120]
[323592982,1714099869533,-500.0,0.00056164,120]
[323592983,1714099869541,-568.63,0.00056164,120]
[323592984,1714099869550,-902.12,0.00056164,120]
[323592985,1714099869560,-500.0,0.00056164,120]
[323592986,1714099869569,-192.18501237,0.00056164,120]
[323592987,1714099869579,-500.0,0.00056164,120]
[323592988,1714099869588,-500.0,0.00056164,120]
[323592989,1714099869597,-1645.56,0.00056164,120]
[323592990,1714099869607,-10108.47,0.00056164,120]
[323592991,1714099869617,-500.0,0.00056164,120]
[323592992,1714099869626,-500.0,0.00056164,120]
[323592993,1714099869635,-500.0,0.00056164,120]
[323592994,1714099869644,-500.0,0.00056164,120]
[323592995,1714099869654,-500.0,0.00056164,120]
[323592996,1714099869663,-867.82,0.00056164,120]
[323592997,1714099869673,-502.86437291,0.00056164,120]
[323592998,1714099869682,-1106.3,0.00056164,120]
[323592999,1714099869691,-500.0,0.00056164,120]
[323593000,1714099869700,-500.0,0.00056164,120]
[323593001,1714099869710,-500.0,0.00056164,120]
[323593002,1714099869719,-500.0,0.00056164,120]
[323593003,1714099869728,-500.0,0.00056164,120]
[323593004,1714099869738,-961.27,0.00056164,120]
[323593005,1714099869780,-500.0,0.00056164,120]
[323593006,1714099869789,-500.0,0.00056164,120]
[323593007,1714099869798,-500.0,0.00056164,120]
[323593008,1714099869808,-500.0,0.00056164,120]
[323593009,1714099869817,-500.0,0.00056164,120]
[323593010,1714099869826,-500.0,0.00056164,120]
[323593011,1714099869838,-460.97657972,0.00056164,120]
[323593012,1714099869847,-500.0,0.00056164,120]
[323593013,1714099869857,-500.0,0.00056164,120]
[323593014,1714099869871,-14214.71,0.00056164,120]
[323593015,1714099869880,-588.6,0.00056164,120]
[323593016,1714099869902,-500.0,0.00056164,120]
[323593017,1714099869925,-2011.18,0.00056164,120]
[323593018,1714099869936,-500.0,0.00056164,120]
[323593019,1714099869952,-1690.05,0.00056164,120]
[323593020,1714099869964,-2570.54,0.00056164,120]
[323593021,1714099869985,-3418.88,0.00056164,21]
[323593022,1714099869999,-500.0,0.00056164,120]
[323593023,1714099870008,-500.0,0.00056164,120]
[323593024,1714099870018,-457.80205811,0.00056164,7]
[323593025,1714099870038,-1241.59,0.00056164,120]
[323593026,1714099870060,-500.0,0.00056164,120]
[323593027,1714099870098,-541.93,0.00056164,120]
[323593028,1714099870117,-500.0,0.00056164,120]
[323593029,1714099870139,-500.0,0.00056164,120]
[323593030,1714099870152,-620.31,0.00056164,120]
[323593031,1714099870162,-4286.96,0.00056164,120]
[323593032,1714099870184,-500.0,0.00056164,120]
[323593033,1714099870207,-500.0,0.00056164,120]
[323593034,1714099870237,-500.0,0.00056164,120]
[323593035,1714099870259,-632.57,0.00056164,120]
[323593036,1714099870281,-2408.71,0.00056164,120]
[323593037,1714099870297,-537.43412255,0.00056164,120]
[323593038,1714099870311,-1365.71,0.00056164,120]
[323593039,1714099870326,-500.0,0.00056164,120]
[323593040,1714099870346,-500.0,0.00056164,120]
[323593041,1714099870367,-500.0,0.00056164,120]
[323593042,1714099870384,-631.83,0.00056164,120]
[323593043,1714099870398,-506.0651436,0.00056164,120]
[323593044,1714099870411,-500.0,0.00056164,120]
[323593045,1714099870426,-500.0,0.00056164,120]
[323593046,1714099870461,-500.0,0.00056164,120]
[323593047,1714099870478,-498.58172884,0.00056164,120]
[323593048,1714099870487,-500.0,0.00056164,120]
[323593049,1714099870497,-500.0,0.00056164,120]
[323593050,1714099870506,-500.0,0.00056164,120]
[323593051,1714099870525,-500.0,0.00056164,60]
[323593052,1714099870543,-500.0,0.00056164,120]
[323593053,1714099870566,-597.63,0.00056164,120]
[323593054,1714099870581,-500.0,0.00056164,120]
[323593055,1714099870604,-3900.41,0.00056164,120]
[323593056,1714099870621,-500.0,0.00056164,120]
[323593057,1714099870636,-541.35,0.00056164,120]
[323593058,1714099870648,-500.0,0.00056164,120]
[323593059,1714099870658,-500.0,0.00056164,120]
[323593060,1714099870667,-500.0,0.00056164,120]
[323593061,1714099870677,-603.69392281,0.00056164,120]
[323593062,1714099870687,-1321.28,0.00056164,120]
[323593063,1714099870696,-507.69119918,0.00056164,120]
[323593064,1714099870705,-500.0,0.00056164,120]
[323593065,1714099870715,-500.0,0.00056164,120]
[323593066,1714099870724,-500.0,0.00056164,120]
[323593067,1714099870733,-709.88,0.00056164,120]
[323593068,1714099870743,-500.0,0.00056164,120]
[323593069,1714099870753,-1376.96,0.00056164,120]
[323593070,1714099870762,-500.0,0.00056164,120]
[323593071,1714099870771,-1270.91,0.00056164,120]
[323593072,1714099870781,-500.0,0.00056164,120]
[323593073,1714099870791,-3138.71,0.00056164,120]
[323593074,1714099870801,-876.13,0.00056164,120]
[323593075,1714099870810,-1259.67,0.00056164,120]
[323593076,1714099870820,-1612.5,0.00056164,120]
[323593077,1714099870829,-500.0,0.00056164,120]
[323593078,1714099870840,-501.56673767,0.00056164,120]
[323593079,1714099870849,-625.72,0.00056164,120]
[323593080,1714099870859,-500.0,0.00056164,120]
[323593081,1714099870869,-500.0,0.00056164,120]
[323593082,1714099870878,-500.0,0.00056164,120]
[323593083,1714099870887,-648.27,0.00056164,120]
[323593084,1714099870897,-500.0,0.00056164,120]
[323593085,1714099870906,-735.51,0.00056164,120]
[323593086,1714099870915,-500.0,0.00056164,120]
[323593087,1714099870925,-500.0,0.00056164,120]
[323593088,1714099870934,-500.0,0.00056164,2]
[323593089,1714099870944,-1608.79,0.00056164,120]
[323593090,1714099870954,-4378.86,0.00056164,120]
[323593091,1714099870963,-653.21,0.00056164,120]
[323593092,1714099871051,-500.0,0.00056164,120]
[323593093,1714099871061,-370.678195,0.00056236,2]
[323593094,1714099871070,-2607.7,0.00056438,120]
[323593095,1714099871081,-500.0,0.00056438,120]
[323593096,1714099871090,-500.0,0.00056438,120]
[323593097,1714099871099,-500.0,0.00056438,120]
[323593098,1714099871109,-500.0,0.00056438,120]
[323593099,1714099871118,-500.0,0.00056438,120]
[323593100,1714099871128,-500.0,0.00056438,120]
[323593101,1714099871137,-500.0,0.00056438,120]
[323593102,1714099871146,-500.0,0.00056438,120]
[323593103,1714099871155,-500.0,0.00056438,120]
[323593104,1714099871165,-500.0,0.00056438,120]
[323593105,1714099871175,-500.0,0.00056438,120]
[323593106,1714099871184,-500.0,0.00056438,120]
[323593107,1714099871194,-500.0,0.00056438,120]
[323593108,1714099871203,-500.0,0.00056438,120]
[323593109,1714099871212,-531.44421736,0.00056438,120]
[323593110,1714099871221,-976.68,0.00056438,120]
[323593111,1714099871231,-500.0,0.00056438,120]
[323593112,1714099871240,-500.0,0.00056438,120]
[323593113,1714099871250,-500.0,0.00056438,120]
[323593114,1714099871259,-500.0,0.00056438,120]
[323593115,1714099871268,-500.0,0.00056438,120]
[323593116,1714099871277,-500.0,0.00056438,120]
[323593117,1714099871287,-500.0,0.00056438,120]
[323593118,1714099871296,-500.0,0.00056438,120]
[323593119,1714099871305,-512.96,0.00056438,120]
[323593120,1714099871314,-500.0,0.00056438,120]
[323593121,1714099871323,-500.0,0.00056438,120]
[323593122,1714099871332,-500.0,0.00056438,120]
[323593123,1714099871344,-500.0,0.00056438,120]
[323593124,1714099871354,-500.0,0.00056438,120]
[323593125,1714099871365,-500.0,0.00056438,120]
[323593126,1714099871374,-1900.81,0.00056438,120]
[323593127,1714099871383,-500.0,0.00056438,120]
[323593128,1714099871392,-1543.65,0.00056438,120]
[323593129,1714099871402,-500.0,0.00056438,120]
[323593130,1714099871412,-500.0,0.00056438,120]
[323593131,1714099871422,-500.0,0.00056438,120]
[323593132,1714099871434,-500.0,0.00056438,120]
[323593133,1714099871443,-500.0,0.00056438,120]
[323593134,1714099871453,-516.59,0.00056438,2]
[323593135,1714099871464,-500.0,0.00056438,120]
[323593136,1714099871473,-500.0,0.00056438,120]
[323593137,1714099871483,-641.72,0.00056438,120]
[323593138,1714099871492,-500.0,0.00056438,120]
[323593139,1714099871502,-500.0,0.00056438,120]
[323593140,1714099871512,-1597.62,0.00056438,120]
[323593141,1714099871521,-500.0,0.00056438,120]
[323593142,1714099871531,-501.18423634,0.00056438,120]
[323593143,1714099871540,-595.18,0.00056438,120]
[323593144,1714099871549,-500.0,0.00056438,120]
[323593145,1714099871558,-500.0,0.00056438,120]
[323593146,1714099871568,-500.0,0.00056438,120]
[323593147,1714099871578,-500.0,0.00056438,120]
[323593148,1714099871587,-500.0,0.00056438,120]
[323593149,1714099871596,-500.0,0.00056438,120]
[323593150,1714099871606,-1727.11,0.00056438,120]
[323593151,1714099871615,-500.0,0.00056438,120]
[323593152,1714099871624,-492.43964325,0.00056438,120]
[323593153,1714099871633,-500.0,0.00056438,120]
[323593154,1714099871642,-500.0,0.00056438,120]
[323593155,1714099871651,-1085.28,0.00056438,120]
[323593156,1714099871661,-549.08531345,0.00056438,120]
[323593157,1714099871670,-769.34,0.00056438,120]
[323593158,1714099871679,-500.0,0.00056438,120]
[323593159,1714099871689,-500.0,0.00056438,7]
[323593160,1714099871698,-500.0,0.00056438,120]
[323593161,1714099871708,-500.0,0.00056438,120]
[323593162,1714099871717,-500.0,0.00056438,120]
[323593163,1714099871726,-645.76600963,0.00056438,120]
[323593164,1714099871735,-967.69,0.00056438,120]
[323593165,1714099871744,-500.0,0.00056438,120]
[323593166,1714099871754,-500.0,0.00056438,120]
[323593167,1714099871763,-500.0,0.00056438,120]
[323593168,1714099871773,-500.0,0.00056438,120]
[323593169,1714099871782,-500.0,0.00056438,120]
[323593170,1714099871791,-826.47,0.00056438,120]
[323593171,1714099871801,-500.0,0.00056438,120]
[323593172,1714099871811,-500.0,0.00056438,120]
[323593173,1714099871820,-500.0,0.00056438,120]
[323593174,1714099871830,-500.0,0.00056438,120]
[323593175,1714099871840,-500.0,0.00056438,120]
[323593176,1714099871850,-500.0,0.00056438,120]
[323593177,1714099871859,-506.69850248,0.00056438,120]
[323593178,1714099871869,-500.0,0.00056438,120]
[323593179,1714099871879,-1913.27,0.00056438,120]
[323593180,1714099871889,-1459.11,0.00056438,120]
[323593181,1714099871898,-501.18230286,0.00056438,120]
[323593182,1714099871908,-1614.85,0.00056438,120]
[323593183,1714099871917,-500.0,0.00056438,120]
[323593184,1714099871927,-1759.91,0.00056438,120]
[323593185,1714099871936,-500.0,0.00056438,120]
[323593186,1714099871946,-501.24640207,0.00056438,120]
[323593187,1714099871956,-1364.53,0.00056438,120]
[323593188,1714099871965,-510.11486433,0.00056438,120]
[323593189,1714099871974,-500.0,0.00056438,120]
[323593190,1714099871984,-500.0,0.00056438,120]
[323593191,1714099871993,-500.0,0.00056438,120]
[323593192,1714099872003,-500.0,0.00056438,120]
[323593193,1714099872012,-481.73138216,0.00056438,3]
[323593194,1714099872022,-500.0,0.00056438,120]
[323593195,1714099872031,-500.0,0.00056438,120]
[323593196,1714099872041,-500.0,0.00056438,120]
[323593197,1714099872050,-882.66,0.00056438,120]
[323593198,1714099872059,-590.52842351,0.00056438,120]
[323593199,1714099872069,-8110.34,0.00056438,120]
[323593200,1714099872079,-500.0,0.00056438,120]
[323593201,1714099872089,-2998.7,0.00056438,120]
[323593202,1714099872098,-1243.4,0.00056438,120]
[323593203,1714099872108,-500.0,0.00056438,120]
[323593204,1714099872117,-568.63,0.00056438,120]
[323593205,1714099872127,-902.12,0.00056438,120]
[323593206,1714099872137,-500.0,0.00056438,120]
[323593207,1714099872146,-500.0,0.00056438,120]
[323593208,1714099872155,-500.0,0.00056438,120]
[323593209,1714099872165,-1645.56,0.00056438,120]
[323593210,1714099872175,-10108.47,0.00056438,120]
[323593211,1714099872185,-500.0,0.00056438,120]
[323593212,1714099872194,-500.0,0.00056438,120]
[323593213,1714099872204,-500.0,0.00056438,120]
[323593214,1714099872213,-504.22301787,0.00056438,120]
[323593215,1714099872223,-500.0,0.00056438,120]
[323593216,1714099872232,-867.82,0.00056438,120]
[323593217,1714099872242,-1106.3,0.00056438,120]
[323593218,1714099872251,-500.0,0.00056438,120]
[323593219,1714099872261,-500.0,0.00056438,120]
[323593220,1714099872270,-500.0,0.00056438,120]
[323593221,1714099872279,-503.81699143,0.00056438,120]
[323593222,1714099872288,-502.55176041,0.00056438,120]
[323593223,1714099872297,-961.27,0.00056438,120]
[323593224,1714099872306,-500.0,0.00056438,120]
[323593225,1714099872315,-500.0,0.00056438,120]
[323593226,1714099872325,-630.19087872,0.00056438,120]
[323593227,1714099872334,-500.0,0.00056438,120]
[323593228,1714099872344,-500.0,0.00056438,120]
[323593229,1714099872353,-500.0,0.00056438,120]
[323593230,1714099872362,-509.70610089,0.00056438,120]
[323593231,1714099872445,-14214.71,0.00056438,120]
[323593232,1714099872455,-588.6,0.00056438,120]
[323593233,1714099872466,-500.0,0.00056438,120]
[323593234,1714099872475,-2011.18,0.00056438,120]
[323593235,1714099872484,-500.0,0.00056438,120]
[323593236,1714099872494,-1690.05,0.00056438,120]
[323593237,1714099872505,-2570.54,0.00056438,120]
[323593238,1714099872516,-3418.88,0.00056438,21]
[323593239,1714099872525,-500.0,0.00056438,120]
[323593240,1714099872535,-500.0,0.00056438,120]
[323593241,1714099872544,-1241.59,0.00056438,120]
[323593242,1714099872554,-500.0,0.00056438,120]
[323593243,1714099872563,-541.93,0.00056438,120]
[323593244,1714099872572,-500.0,0.00056438,120]
[323593245,1714099872582,-500.0,0.00056438,120]
[323593246,1714099872592,-620.31,0.00056438,120]
[323593247,1714099872601,-4286.96,0.00056438,120]
[323593248,1714099872610,-501.34507667,0.00056438,120]
[323593249,1714099872620,-500.0,0.00056438,120]
[323593250,1714099872629,-500.0,0.00056438,120]
[323593251,1714099872639,-632.57,0.00056438,120]
[323593252,1714099872648,-2408.71,0.00056438,120]
[323593253,1714099872658,-1365.71,0.00056438,120]
[323593254,1714099872667,-500.0,0.00056438,120]
[323593255,1714099872677,-500.0,0.00056438,120]
[323593256,1714099872686,-500.0,0.00056438,120]
[323593257,1714099872695,-631.83,0.00056438,120]
[323593258,1714099872705,-500.0,0.00056438,120]
[323593259,1714099872714,-500.0,0.00056438,120]
[323593260,1714099872724,-356.78711012,0.00056438,120]
[323593261,1714099872733,-500.0,0.00056438,120]
[323593262,1714099872743,-500.0,0.00056438,120]
[323593263,1714099872752,-503.50211349,0.00056438,120]
[323593264,1714099872762,-500.0,0.00056438,60]
[323593265,1714099872772,-501.59663664,0.00056438,120]
[323593266,1714099872781,-597.63,0.00056438,120]
[323593267,1714099872790,-3900.41,0.00056438,120]
[323593268,1714099872800,-500.0,0.00056438,120]
[323593269,1714099872809,-500.0,0.00056438,120]
[323593270,1714099872818,-541.35,0.00056438,120]
[323593271,1714099872827,-500.0,0.00056438,120]
[323593272,1714099872837,-624.89915356,0.00056438,120]
[323593273,1714099872846,-500.0,0.00056438,120]
[323593274,1714099872856,-1321.28,0.00056438,120]
[323593275,1714099872865,-500.0,0.00056438,120]
[323593276,1714099872874,-500.0,0.00056438,120]
[323593277,1714099872884,-500.0,0.00056438,120]
[323593278,1714099872893,-709.88,0.00056438,120]
[323593279,1714099872902,-500.0,0.00056438,120]
[323593280,1714099872912,-1376.96,0.00056438,120]
[323593281,1714099872921,-500.0,0.00056438,120]
[323593282,1714099872930,-1270.91,0.00056438,120]
[323593283,1714099872939,-500.0,0.00056438,120]
[323593284,1714099872949,-3138.71,0.00056438,120]
[323593285,1714099872959,-876.13,0.00056438,120]
[323593286,1714099872968,-1259.67,0.00056438,120]
[323593287,1714099872978,-1612.5,0.00056438,120]
[323593288,1714099872987,-500.0,0.00056438,120]
[323593289,1714099872997,-625.72,0.00056438,120]
[323593290,1714099873006,-500.0,0.00056438,120]
[323593291,1714099873015,-500.0,0.00056438,120]
[323593292,1714099873024,-501.58291824,0.00056438,120]
[323593293,1714099873033,-648.27,0.00056438,120]
[323593294,1714099873042,-465.14793313,0.00056438,120]
[323593295,1714099873051,-735.51,0.00056438,120]
[323593296,1714099873061,-500.0,0.00056438,120]
[323593297,1714099873070,-500.0,0.00056438,120]
[323593298,1714099873079,-500.0,0.00056438,2]
[323593299,1714099873089,-1608.79,0.00056438,120]
[323593300,1714099873098,-4378.86,0.00056438,120]
[323593301,1714099873107,-653.21,0.00056438,120]
[323593302,1714099873116,-500.0,0.00056438,120]
[323593303,1714099873125,-203.0,0.000566,120]
[323593304,1714099873134,-2607.7,0.00056712,120]
[323593305,1714099873144,-500.0,0.00056712,120]
[323593306,1714099873153,-500.0,0.00056712,120]
[323593307,1714099873162,-500.0,0.00056712,120]
[323593308,1714099873171,-500.0,0.00056712,120]
[323593309,1714099873181,-500.0,0.00056712,120]
[323593310,1714099873189,-500.0,0.00056712,120]
[323593311,1714099873199,-500.0,0.00056712,120]
[323593312,1714099873208,-500.0,0.00056712,120]
[323593313,1714099873217,-500.0,0.00056712,120]
[323593314,1714099873227,-500.0,0.00056712,120]
[323593315,1714099873236,-500.0,0.00056712,120]
[323593316,1714099873245,-500.0,0.00056712,120]
[323593317,1714099873254,-500.0,0.00056712,120]
[323593318,1714099873263,-500.0,0.00056712,120]
[323593319,1714099873273,-976.68,0.00056712,120]
[323593320,1714099873282,-500.0,0.00056712,120]
[323593321,1714099873291,-500.0,0.00056712,120]
[323593322,1714099873301,-500.0,0.00056712,120]
[323593323,1714099873310,-500.0,0.00056712,120]
[323593324,1714099873319,-500.0,0.00056712,120]
[323593325,1714099873329,-500.0,0.00056712,120]
[323593326,1714099873338,-500.0,0.00056712,120]
[323593327,1714099873347,-500.0,0.00056712,120]
[323593328,1714099873356,-512.96,0.00056712,120]
[323593329,1714099873365,-500.0,0.00056712,120]
[323593330,1714099873375,-500.0,0.00056712,120]
[323593331,1714099873385,-500.0,0.00056712,120]
[323593332,1714099873395,-500.0,0.00056712,120]
[323593333,1714099873404,-509.28397635,0.00056712,120]
[323593334,1714099873414,-500.0,0.00056712,120]
[323593335,1714099873428,-1900.81,0.00056712,120]
[323593336,1714099873437,-500.0,0.00056712,120]
[323593337,1714099873446,-1543.65,0.00056712,120]
[323593338,1714099873455,-500.0,0.00056712,120]
[323593339,1714099873466,-500.0,0.00056712,120]
[323593340,1714099873475,-500.0,0.00056712,120]
[323593341,1714099873486,-500.0,0.00056712,120]
[323593342,1714099873495,-536.57463772,0.00056712,120]
[323593343,1714099873505,-516.59,0.00056712,2]
[323593344,1714099873515,-500.0,0.00056712,120]
[323593345,1714099873524,-500.0,0.00056712,120]
[323593346,1714099873534,-641.72,0.00056712,120]
[323593347,1714099873543,-500.0,0.00056712,120]
[323593348,1714099873552,-500.0,0.00056712,120]
[323593349,1714099873562,-1597.62,0.00056712,120]
[323593350,1714099873573,-500.0,0.00056712,120]
[323593351,1714099873583,-595.18,0.00056712,120]
[323593352,1714099873593,-500.0,0.00056712,120]
[323593353,1714099873603,-500.0,0.00056712,120]
[323593354,1714099873613,-500.0,0.00056712,120]
[323593355,1714099873623,-500.0,0.00056712,120]
[323593356,1714099873634,-500.0,0.00056712,120]
[323593357,1714099873643,-500.0,0.00056712,120]
[323593358,1714099873653,-1727.11,0.00056712,120]
[323593359,1714099873663,-500.0,0.00056712,120]
[323593360,1714099873750,-500.0,0.00056712,120]
[323593361,1714099873760,-564.96506372,0.00056712,120]
[323593362,1714099873770,-1085.28,0.00056712,120]
[323593363,1714099873780,-769.34,0.00056712,120]
[323593364,1714099873789,-500.0,0.00056712,120]
[323593365,1714099873798,-500.0,0.00056712,7]
[323593366,1714099873808,-548.92728815,0.00056712,120]
[323593367,1714099873818,-500.0,0.00056712,120]
[323593368,1714099873827,-500.0,0.00056712,120]
[323593369,1714099873837,-967.69,0.00056712,120]
[323593370,1714099873846,-223.10960381,0.00056712,120]
[323593371,1714099873856,-500.0,0.00056712,120]
[323593372,1714099873865,-500.0,0.00056712,120]
[323593373,1714099873874,-500.0,0.00056712,120]
[323593374,1714099873883,-500.0,0.00056712,120]
[323593375,1714099873892,-826.47,0.00056712,120]
[323593376,1714099873902,-500.0,0.00056712,120]
[323593377,1714099873913,-500.0,0.00056712,120]
[323593378,1714099873922,-500.0,0.00056712,120]
[323593379,1714099873931,-500.0,0.00056712,120]
[323593380,1714099873941,-500.0,0.00056712,120]
[323593381,1714099873951,-500.0,0.00056712,120]
[323593382,1714099873961,-500.0,0.00056712,120]
[323593383,1714099873971,-1913.27,0.00056712,120]
[323593384,1714099873980,-1459.11,0.00056712,120]
[323593385,1714099873990,-1614.85,0.00056712,120]
[323593386,1714099873999,-446.73061085,0.00056712,120]
[323593387,1714099874009,-1759.91,0.00056712,120]
[323593388,1714099874019,-500.0,0.00056712,120]
[323593389,1714099874029,-1364.53,0.00056712,120]
[323593390,1714099874038,-500.0,0.00056712,120]
[323593391,1714099874048,-500.0,0.00056712,120]
[323593392,1714099874058,-500.0,0.00056712,120]
[323593393,1714099874067,-500.0,0.00056712,120]
[323593394,1714099874076,-500.0,0.00056712,120]
[323593395,1714099874085,-500.0,0.00056712,120]
[323593396,1714099874095,-500.0,0.00056712,120]
[323593397,1714099874104,-882.66,0.00056712,120]
[323593398,1714099874115,-8110.34,0.00056712,120]
[323593399,1714099874124,-502.22696915,0.00056712,120]
[323593400,1714099874134,-2998.7,0.00056712,120]
[323593401,1714099874144,-1243.4,0.00056712,120]
[323593402,1714099874153,-500.0,0.00056712,120]
[323593403,1714099874163,-568.63,0.00056712,120]
[323593404,1714099874173,-902.12,0.00056712,120]
[323593405,1714099874182,-500.0,0.00056712,120]
[323593406,1714099874191,-500.0,0.00056712,120]
[323593407,1714099874200,-299.23462613,0.00056712,120]
[323593408,1714099874209,-1645.56,0.00056712,120]
[323593409,1714099874219,-10108.47,0.00056712,120]
[323593410,1714099874228,-500.0,0.00056712,120]
[323593411,1714099874237,-500.0,0.00056712,120]
[323593412,1714099874247,-500.0,0.00056712,120]
[323593413,1714099874256,-500.0,0.00056712,120]
[323593414,1714099874266,-867.82,0.00056712,120]
[323593415,1714099874275,-1106.3,0.00056712,120]